Cogmind - Beta 10.1 @@@ ROGUE MODE // 2020.10.25 @ 12:33:16 Player: lsend Result: Destroyed by B-36 Bruiser with Hammer Performance ------------- Evolutions (0) 0 Regions Visited (4) 800 Robots Destroyed (7) 35 Value Destroyed (15) 15 Prototype IDs (23) 460 Alien Tech Used (0) 0 Bonus (63) 63 TOTAL SCORE: 1373 Bonus ------- Follower Combat Kills 21 Aligned with FarCom 300 Friendly Fire -258 Cogmind --------- Core Integrity 0/250 Matter 300/300 Energy 100/100 System Corruption 2% Temperature Cool (0) Movement Core (50) Location -9/Mines Parts ------- > --- POWER (1) -------- (None) > --- PROPULSION (2) --- (None) > --- UTILITY (2) ------ (None) > --- WEAPON (2) ------- (None) > --- INVENTORY (4) ---- Flight Unit Flight Unit Medium Storage Unit Peak State ------------ > --- POWER ------------ Light Ion Engine > --- PROPULSION ------- Flight Unit Flight Unit > --- UTILITY ---------- Medium Storage Unit Light Armor Plating > --- WEAPON ----------- Firepult > --- INVENTORY -------- Flight Unit Flight Unit Deploy-a-Sentry Deploy-a-Sentry Deploy-a-Sentry [Rating: 27] Favorites ----------- Power Light Ion Engine Engine Light Ion Engine Propulsion Flight Unit Treads Light Treads Flight Unit Flight Unit Utility Light Armor Plating Storage Medium Storage Unit Protection Light Armor Plating Weapon Firepult Energy Cannon Firepult Build | -11 -10 -10 -10 -9 ------- Run | Scr Mat Min Exi Min Slots Evolved . | . . . . . Power . | . . . . . Propulsion . | . . . . . Utility . | . . . . . Weapon . | . . . . . Parts Attached 8 | 2 1 3 2 . Power 1 | . . 1 . . Engine 1 | . . 1 . . Core . | . . . . . Reactor . | . . . . . Propulsion 4 | 2 . 2 . . Treads 2 | 2 . . . . Leg . | . . . . . Wheel . | . . . . . Hover . | . . . . . Flight 2 | . . 2 . . Utility 2 | . 1 . 1 . Device . | . . . . . Storage 1 | . . . 1 . Processor . | . . . . . Hackware . | . . . . . Protection 1 | . 1 . . . Artifact . | . . . . . Weapon 1 | . . . 1 . Energy Gun . | . . . . . Energy Cannon 1 | . . . 1 . Ballistic Gun . | . . . . . Ballistic Cannon . | . . . . . Launcher . | . . . . . Special Weapon . | . . . . . Impact Weapon . | . . . . . Slashing Weapon . | . . . . . Piercing Weapon . | . . . . . Special Melee Weapon . | . . . . . Unidentified Prototypes . | . . . . . Parts Lost 4 | . . . 4 . Power 1 | . . . 1 . Propulsion 2 | . . . 2 . Utility 1 | . . . 1 . Weapon . | . . . . . Highest Loss Streak 3 | . . . 3 . Average Slot Usage (%) 60 | . 40 49 70 . Engine 9 | . . 6 12 . Treads 7 | . 28 14 . . Flight 19 | . . 13 25 . Storage 6 | . . . 9 . Protection 12 | . 12 14 11 . Energy Cannon 6 | . . . 10 . Naked Turns 25 | . . . 24 1 Heaviest Build 36 | . 3 6 36 . Greatest Support 40 | 3 3 40 8 3 Greatest Overweight (x) 4 | . . . 4 . Average Overweight (x) . | . . . . . Largest Inventory Capacity 8 | 4 4 4 8 4 Average Capacity 5 | 4 4 4 6 4 Most Carried 5 | . 1 4 5 3 Average Carried 3 | . . 2 4 3 Final Capacity 4 | 4 4 4 4 4 Final Carried 3 | . 1 3 3 3 Class Distribution -------------------- 100% | Mutant Dominant Class ---------------- Mutant | -10/Materials Mutant | -10/Mines Mutant | -10/Exiles Mutant | -9/Mines Resources | -11 -10 -10 -10 -9 ----------- Run | Scr Mat Min Exi Min Matter Collected 255 | 220 . 35 . . Remotely . | . . . . . Salvage Created 115 | . . 37 78 . Parts 3 | . . 3 . . Haulers Intercepted . | . . . . . Recyclers Shooed . | . . . . . Parts Field Recycled . | . . . . . Retrieved Matter . | . . . . . Parts Self-Destructed . | . . . . . Prevented . | . . . . . Kills | -11 -10 -10 -10 -9 ------- Run | Scr Mat Min Exi Min Combat Hostiles Destroyed 4 | . . . 4 . AOE 3 | . . . 3 . Classes Destroyed 2 | . . 1 1 . Tunneler 2 | . . 2 . . Assembled 4 | . . . 4 . Best Kill Streak 5 | . . 2 5 . Combat Bots Only 4 | . . . 4 . Max Kills in Single Turn 4 | . . 1 4 . Gunslinging . | . . . . . Exploded 3 | . . . 3 . Melee . | . . . . . Uniques/NPCs Destroyed 1 | . . . 1 . EX-HEX (-10/Exiles) Combat | -11 -10 -10 -10 -9 -------- Run | Scr Mat Min Exi Min Damage Taken 538 | . 44 185 290 19 Core 253 | . 11 40 183 19 Absorbed by Shields . | . . . . . Core Remaining (%) 100 | 100 . . . . Volleys Fired 3 | . . . 3 . Largest 1 | . . . 1 . Hottest 250 | . . . 250 . Shots Fired 3 | . . . 3 . Gun . | . . . . . Cannon 3 | . . . 3 . Launcher . | . . . . . Special . | . . . . . Kinetic . | . . . . . Thermal 3 | . . . 3 . Explosive . | . . . . . Electromagnetic . | . . . . . Robot Hit Streak 1 | . . . 1 . Robot Miss Streak 3 | . . . 3 . Penetration Max . | . . . . . Secondary Targets . | . . . . . Shots Hit Robots 2 | . . . 2 . Core Hits 15 | . . 3 12 . Critical Hits . | . . . . . Critical Kills . | . . . . . Critical Parts Destroyed . | . . . . . Melee Attacks . | . . . . . Impact . | . . . . . Slashing . | . . . . . Piercing . | . . . . . Sneak Attacks . | . . . . . Combat Hostiles . | . . . . . Follow-up Attacks . | . . . . . Damage Inflicted 309 | . . 24 285 . Guns . | . . . . . Cannons . | . . . . . Explosions 285 | . . . 285 . Melee . | . . . . . Ramming 24 | . . 24 . . Kinetic . | . . . . . Thermal 285 | . . . 285 . Explosive . | . . . . . Electromagnetic . | . . . . . Impact . | . . . . . Slashing . | . . . . . Piercing . | . . . . . Highest Corruption 2 | . 2 2 2 2 Average Corruption 2 | . 2 2 2 2 Corruption Purged . | . . . . . Effects 5 | . . . 5 . Message Errors 2 | . . . 2 . Energy Discharges 1 | . . . 1 . Data Loss (minor) 2 | . . . 2 . Overload Shots . | . . . . . Overflow Damage . | . . . . . Projectiles . | . . . . . Explosions . | . . . . . Melee . | . . . . . Knockbacks . | . . . . . Impact . | . . . . . Kinetic . | . . . . . Secondary . | . . . . . Self-Inflicted Damage 37 | . . 11 26 . Shots 2 | . . . 2 . Rammed 4 | . . 4 . . Targets Rammed 4 | . . 4 . . Kicked . | . . . . . Crushed . | . . . . . Highest Temperature 491 | . . . 491 . Average Temperature 284 | . . . 284 . Received Heat Transfer 79 | . 24 15 40 . Effects 6 | . . . 6 . Shutdowns 2 | . . . 2 . Energy Bleed 1 | . . . 1 . Short Circuit 2 | . . . 2 . Damage (minor) 1 | . . . 1 . Siege Activations . | . . . . . Robots Corrupted . | . . . . . Combat Hostiles . | . . . . . Parts Fried . | . . . . . Impact Corruptions . | . . . . . Robots Melted 2 | . . . 2 . Combat Hostiles 1 | . . . 1 . Parts Melted 11 | . . . 11 . Heat Transferred 1920 | . . . 1920 . Parts Sabotaged . | . . . . . Parts Stolen . | . . . . . Parts Stripped . | . . . . . Power Chain Reactions . | . . . . . Missiles Intercepted . | . . . . . Alert | -11 -10 -10 -10 -9 ------- Run | Scr Mat Min Exi Min Peak Influence 95 | . 15 95 . . Initial 5 | . . 5 . . Average 40 | . 6 62 . . Maximum Alert Level . | . . . . . Low Security (%) 100 | 100 100 100 . 100 Level 1 . | . . . . . Level 2 . | . . . . . Level 3 . | . . . . . Level 4 . | . . . . . Level 5 . | . . . . . High Security . | . . . . . Max Security . | . . . . . Squads Dispatched . | . . . . . Investigation . | . . . . . Extermination . | . . . . . Reinforcement . | . . . . . Assault . | . . . . . Garrison . | . . . . . Intercept . | . . . . . Construction Impeded . | . . . . . Haulers Reinforced . | . . . . . Stealth | -11 -10 -10 -10 -9 --------- Run | Scr Mat Min Exi Min Distress Signals 1 | . 1 . . . Communications Jammed . | . . . . . Distress Signals . | . . . . . Times Spotted 26 | . 7 8 8 3 Peak Tracking Total 9 | . 6 5 9 . Tactical Retreats 4 | . 1 2 1 . Traps | -11 -10 -10 -10 -9 ------- Run | Scr Mat Min Exi Min Traps Triggered 1 | . 1 . . . Indirectly . | . . . . . Trap Hack Attempts . | . . . . . Triggered . | . . . . . Disarmed . | . . . . . Reprogrammed . | . . . . . Reused . | . . . . . Traps Extracted . | . . . . . Installed . | . . . . . Triggered . | . . . . . Machines | -11 -10 -10 -10 -9 ---------- Run | Scr Mat Min Exi Min Machines Disabled 5 | . . . 5 . Max in Single Turn 2 | . . . 2 . Machines Sabotaged . | . . . . . Garrisons Compromised . | . . . . . Overloaded Fab Kills . | . . . . . Fab Network Shutdowns . | . . . . . Hacking | -11 -10 -10 -10 -9 --------- Run | Scr Mat Min Exi Min Machines Accessed 2 | . . . 2 . Terminals . | . . . . . Fabricators . | . . . . . Repair Stations . | . . . . . Recycling Units . | . . . . . Scanalyzers . | . . . . . Garrison Access . | . . . . . Total Hacks 6 | . . . 6 . Successful 6 | . . . 6 . Failed . | . . . . . Catastrophic . | . . . . . Database Lockouts . | . . . . . Manual 1 | . . . 1 . Terminals . | . . . . . Fabricators . | . . . . . Repair Stations . | . . . . . Recycling Units . | . . . . . Scanalyzers . | . . . . . Garrison Access . | . . . . . Terminal Hacks 6 | . . . 6 . Record 5 | . . . 5 . EX-Prototype ID Bank 1 | . . . 1 . Fabricator Hacks . | . . . . . Repair Station Hacks . | . . . . . Recycling Unit Hacks . | . . . . . Scanalyzer . | . . . . . Garrison Access Hacks . | . . . . . Unauthorized Hacks . | . . . . . Terminals . | . . . . . Fabricators . | . . . . . Repair Stations . | . . . . . Recycling Units . | . . . . . Scanalyzers . | . . . . . Garrison Access . | . . . . . Data Cores Recovered . | . . . . . Used . | . . . . . Hacking Detections . | . . . . . Full Trace Events . | . . . . . Feedback Events . | . . . . . Feedback Blocked . | . . . . . Robot Schematics Acquired . | . . . . . Robots Built . | . . . . . Matter . | . . . . . Time . | . . . . . Total Robot Build Rating . | . . . . . Part Schematics Acquired . | . . . . . Parts Built . | . . . . . Matter . | . . . . . Time . | . . . . . Total Part Build Rating . | . . . . . Parts Repaired . | . . . . . Time . | . . . . . Parts Recycled . | . . . . . Recycled Matter . | . . . . . Retrieved Matter . | . . . . . Retrieved Components . | . . . . . Parts Scanalyzed . | . . . . . Part Schematics Acquired . | . . . . . Parts Damaged . | . . . . . Bothacking | -11 -10 -10 -10 -9 ------------ Run | Scr Mat Min Exi Min Used RIF Installer . | . . . . . Robots Hacked . | . . . . . Non-combat . | . . . . . Combat . | . . . . . Robot Hacks Applied . | . . . . . Relay Couplers Released . | . . . . . Robots Rewired . | . . . . . Allies Hacked . | . . . . . Hacks Repelled . | . . . . . Allies | -11 -10 -10 -10 -9 -------- Run | Scr Mat Min Exi Min Total Allies 3 | . . 3 . . Largest Group 3 | . . 3 2 . Highest-Rated Group 40 | . . 40 32 . Highest-Rated Ally 16 | . . 16 16 . Total Orders . | . . . . . Ally Attacks 53 | . . 16 37 . Total Damage 1166 | . . 173 993 . Kills 8 | . . 4 4 . Allies Corrupted . | . . . . . Allies Melted . | . . . . . Turrets Deployed 3 | . . . 3 . Intel | -11 -10 -10 -10 -9 ------- Run | Scr Mat Min Exi Min Robot Analysis Total . | . . . . . Derelict Logs Recovered . | . . . . . Drone Launches . | . . . . . Drone Recoveries . | . . . . . Exploration | -11 -10 -10 -10 -9 ------------- Run | Scr Mat Min Exi Min Turns Passed 572 | 18 69 144 340 1 Spaces Moved 607 | 31 132 177 266 1 Core 333 | 31 132 120 49 1 Treads 2 | . . 2 . . Legs . | . . . . . Wheels . | . . . . . Hover . | . . . . . Flight 272 | . . 55 217 . Fastest Speed 37 | 50 50 37 37 50 Average Speed 78 | 50 50 47 117 50 Slowest Speed 357 | 50 50 160 357 50 Overloaded Moves . | . . . . . Propulsion Burnouts . | . . . . . Robots Hopped 1 | . . . 1 . Cave-ins Triggered . | . . . . . Exploration Rate (%) 27 | 3 43 27 60 2 Regions Visited 4 Branch Regions 3 Pre-discovered Areas 1 | . . . 1 . Known Exits Taken . | . . . . . Unknown Exits Taken 4 | 1 1 1 1 . Scrap Searched 1 | . . 1 . . Spaces Dug . | . . . . . Terrain Destroyed 17 | . . . 17 . Melee . | . . . . . Projectile 1 | . . . 1 . AOE 16 | . . . 16 . Terrain Rammed . | . . . . . Walls Destroyed . | . . . . . Machines Disabled . | . . . . . Actions | -11 -10 -10 -10 -9 --------- Run | Scr Mat Min Exi Min Total 692 | 32 133 237 289 1 Wait 58 | . . 46 12 . Move 601 | 30 131 176 263 1 Hop 1 | . . . 1 . Pick Up 9 | . 1 5 3 . Fast Attach 5 | 2 1 1 1 . Attach 3 | . . 2 1 . Detach 1 | . . . 1 . Swap . | . . . . . Drop 7 | . . 3 4 . Fire 3 | . . . 3 . Melee . | . . . . . Ram 2 | . . 2 . . Kick . | . . . . . Crush 2 | . . 2 . . Escape Stasis . | . . . . . Rewire . | . . . . . Trap . | . . . . . Miscellaneous . | . . . . . Route ------- -11/Scrapyard -10/Materials (discovered 2 exits: [*Mat] / [*Min]) -10/Mines -10/Exiles -9/Mines History --------- Turn | Location | Event 4 | -11/Scrapyard | Discovered new exit (range 16) 19 | -11/Scrapyard | Entered Materials 60 | -10/Materials | Discovered new exit (range 12) 83 | -10/Materials | Discovered new exit (range 10) 88 | -10/Materials | Entered Mines 136 | -10/Mines | Assisted by bots powering up and referring to "LRC-V3" 184 | -10/Mines | Deemed a non-threat by the Exiles lab entrance 184 | -10/Mines | Discovered new exit (range 5) 232 | -10/Mines | Entered Exiles 232 | -10/Exiles | Accompanied by 2 allies 242 | -10/Exiles | Met 8R-AWN 249 | -10/Exiles | Met EX-HEX 260 | -10/Exiles | Met EX-BIN 264 | -10/Exiles | Aligned with FarCom system 264 | -10/Exiles | Given EX-Vault access code 273 | -10/Exiles | Opened EX-Vault 276 | -10/Exiles | Found Deploy-a-Sentry 279 | -10/Exiles | Found Firepult 299 | -10/Exiles | Found Deploy-a-Sentry 301 | -10/Exiles | Build established: Mutant 304 | -10/Exiles | Found Deploy-a-Sentry 380 | -10/Exiles | Warned to stay clear of 0b10 Research branches 506 | -10/Exiles | Attacked by the Exiles 509 | -10/Exiles | Destroyed EX-HEX 510 | -10/Exiles | DAS Turret deployed 514 | -10/Exiles | DAS Turret deployed 518 | -10/Exiles | DAS Turret deployed 550 | -10/Exiles | Core integrity fell below 50% 552 | -10/Exiles | Learned location of Zion (-7) 554 | -10/Exiles | Core integrity fell below 20% 568 | -10/Exiles | Discovered new exit (range 10) 572 | -10/Exiles | Entered Mines 573 | -9/Mines | Destroyed by B-36 Bruiser with Hammer Last Messages --------------- assistance. Of course they lose outposts like a wild Derelict loses bolts, but one of the latest major bases seems to be at about -5 or -4, somewhere out beyond the Upper Caves. >>Record "MSG003537-01*" PINNED - Until our FarCom is fully operational, I strongly recommend anyone spending a while in 0b10 bring along sensors with decent range to avoid running into patrols. A Signal Interpreter is optional since I know you're all smart enough to figure out what most of the blips are by watching their behavior for a short while. >>Record "MSG004902-01*" PINNED - I saw a Programmer snooping around in the Mines recently, it's only a matter of time before they find us. We might need to prioritize getting out of here and finding a better environment less hostile to science. >>Record "MSG001836-01" DEC, I lent the Quad Micro-nuker to 99-TNT for a favor, so I'm not sure we'll ever get that back. Oops. 00568_ EXIT=FOUND LOCATION=UNKNOWN GOAL=ESCAPE Map ----- +----------------------------------------------------+ | ??????????????????????????????????? | | ??????????????????????????????????? | | ??????????????????????????????????? | | ??????????????????????????????????? | | ??????????????????????????????????? | | ??????????????????????????????????? | | ??????????????????????????????????? | | ??????????????????????????????????? | | ??????????????????????????????????? | | ??????????????????????????????????? | | ??????????????????????????????????? | | ??????????????????????????????????? | | ??????????????????????????????????? | | ??????????????????????????????????? | | ??????????????????????????????????? | | ??????????????????????????????????? | | ??????????????????????#???????????? | | ??????????????????????#$??????????? | | ?????????????????#????# ??????????? | | ?????????????????? ???#$??????????? | | ??????????????????? ### ######????? | | ???????????????????? #????? | | ????????????????????? #????? | | ??????????????????????# #?????? | | ??????????????????????# #??????? | | ??????????????????????# g@ #??????? | | ??????????????????????#gb #??????? | | ??????????????????????## ##??????? | | ???????????????????????####???????? | | ??????????????????????????????????? | | ??????????????????????????????????? | | ??????????????????????????????????? | | ??????????????????????????????????? | | ??????????????????????????????????? | | ??????????????????????????????????? | | ??????????????????????????????????? | | ??????????????????????????????????? | | ??????????????????????????????????? | | ??????????????????????????????????? | | ??????????????????????????????????? | | ??????????????????????????????????? | | ??????????????????????????????????? | | ??????????????????????????????????? | | ??????????????????????????????????? | | ??????????????????????????????????? | | ??????????????????????????????????? | | ??????????????????????????????????? | | ??????????????????????????????????? | | ??????????????????????????????????? | | ??????????????????????????????????? | +----------------------------------------------------+ Best States ------------- Heat Dissipation 25 Energy Generation 10 Energy Capacity 125 Matter Stores 300 Matter Capacity 300 Sight Range 16 Terrain Scan Density 10 Armor Coverage 150 Evasion (%) 62 Recoil Reduction 2 Item Schematics ----------------- None Robot Schematics ------------------ None Fabricated ------------ Nothing Alien Tech Used ----------------- None Achievements -------------- None Challenges ------------ None Game ------ Seed AerolevDecoderSegregator Manual? 0 Play Time 00:08:46 Cumulative 549.7 hours Start 2020.10.24 @ 23:13:38 End 2020.10.25 @ 12:33:16 Sessions 5 Manual Loads 0 Difficulty Rogue Special Mode None Game No. 435 Rogue 435 Adventurer 0 Explorer 0 Win Type - Total 146 Types 84/8/38/6/3/2/4/1/0 Lore% 98 Gallery% 95 Achievement% 83 Wizard Run 0 Options --------- ASCII 1 Keyboard 0 Movement Vi Keybinds 0 Fullscreen 1 Font 24/Smallcaps Map View 76x50 Tactical HUD 1 Map Filters NONE Filters NONE Steam 1 RUN: 1c0b430e-89a8-456f-adaa-05dc6ba32c3a